bitfinex/quotes_ETHUSD_20250406
["timestamp","ask_amount","ask_price","bid_price","bid_amount"]
[1743954925890,11.70445581,1760.5,1760.0,10.19333]
[1743954926087,3.9764,1760.4,1760.0,10.19333]
[1743954926732,3.9764,1760.4,1759.9,0.00636326]
[1743954926733,4.73543,1760.2,1759.9,0.00636326]
[1743954926988,3.97727,1760.0,1759.9,5.42836326]
[1743954927918,6.97727,1760.0,1759.9,5.42836326]
[1743954928438,8.46966858,1760.0,1759.9,5.42836326]
[1743954928641,9.22816858,1760.0,1759.9,5.42836326]
[1743954930089,9.22816858,1760.0,1759.9,0.00636326]
[1743954935125,6.22816858,1760.0,1759.9,0.00636326]
[1743954938536,6.77816858,1760.0,1759.9,0.00636326]
[1743954938966,6.22816858,1760.0,1759.9,0.00636326]
[1743954939503,1.49239858,1760.0,1759.9,0.00636326]
[1743954939703,3.97704,1760.1,1759.9,5.42836326]
[1743954939903,10.1069,1760.2,1759.9,5.42836326]
[1743954940813,10.53999624,1760.2,1759.9,5.42836326]
[1743954941502,14.50967205,1760.2,1759.9,5.42836326]
[1743954941718,3.97719,1760.1,1759.9,5.42836326]
[1743954944258,0.7842,1760.0,1759.9,5.42836326]
[1743954945149,5.8258702,1760.1,1759.9,5.42836326]
[1743954947527,3.97727,1760.0,1759.9,0.00636326]
[1743954947927,5.8258702,1760.1,1759.9,0.00636326]
[1743954948861,1.8486802,1760.1,1759.9,0.00636326]
[1743954949026,11.32415624,1760.2,1759.9,0.79856326]
[1743954950157,6.13,1760.2,1760.0,3.97714]
[1743954950377,6.13,1760.2,1760.1,3.97704]
[1743954951561,6.13,1760.2,1760.0,3.97714]
[1743954952338,6.13,1760.2,1759.9,8.75352326]
[1743954952541,6.13,1760.2,1759.9,4.77604326]
[1743954952765,10.1069,1760.2,1759.9,0.00636326]
[1743954953672,10.1069,1760.2,1759.9,3.98385326]
[1743954954470,6.13,1760.2,1759.9,3.98385326]
[1743954954635,6.13,1760.2,1759.9,7.96120326]
[1743954955361,6.13,1760.2,1759.9,3.98371326]
[1743954956068,6.13,1760.2,1759.9,7.96108326]
[1743954956291,6.13,1760.2,1760.0,3.97711]
[1743954956430,9.13,1760.2,1760.1,4.72754]
[1743954956643,9.13,1760.2,1760.1,0.7505]
[1743954958057,9.13,1760.2,1760.0,0.7505]
[1743954958779,13.10684,1760.2,1759.9,0.00636326]
[1743954958958,17.08381,1760.2,1759.9,0.00636326]
[1743954959569,13.10684,1760.2,1759.9,0.00636326]
[1743954959878,6.97684,1760.2,1759.9,0.00636326]
[1743954960767,3.0,1760.2,1759.9,3.98384326]
[1743954961492,3.0,1760.2,1760.0,0.7652]
[1743954961793,3.0,1760.2,1760.0,4.74237]
[1743954962100,3.0,1760.2,1760.0,8.71949]
[1743954962405,0.29615448,1760.3,1760.1,3.97704]
[1743954962546,3.97569,1760.7,1760.3,3.97639]
[1743954962749,3.97569,1760.7,1760.3,4.03319197]
[1743954962963,3.97569,1760.7,1760.3,8.00970197]
[1743954963162,3.0,1760.6,1760.3,8.00970197]
[1743954963377,3.0,1760.6,1760.3,3.97639]
[1743954966171,3.0,1760.6,1760.2,6.1852]
[1743954966172,8.864105,1760.6,1760.2,6.1852]
[1743954966370,3.97618,1760.5,1760.2,6.1852]
[1743954967054,3.97618,1760.5,1760.3,5.419]
[1743954967055,7.95249,1760.5,1760.3,5.419]
[1743954967528,3.97618,1760.5,1760.3,5.419]
[1743954967999,7.95253,1760.5,1760.3,5.419]
[1743954968183,3.97618,1760.5,1760.3,5.419]
[1743954971222,7.95248,1760.5,1760.3,5.419]
[1743954971525,9.52399558,1760.5,1760.3,5.419]
[1743954971814,5.54769558,1760.5,1760.3,5.419]
[1743954972016,1.57151558,1760.5,1760.3,5.419]
[1743954972211,7.76894,1760.6,1760.3,10.21908]
[1743954972419,6.97594,1760.6,1760.3,10.21908]
[1743954973521,6.97594,1760.6,1760.3,6.2425]
[1743954976487,3.0,1760.6,1760.3,10.21907]
[1743954977921,6.97595,1760.6,1760.3,10.21907]
[1743954978424,6.97595,1760.6,1760.3,6.2425]
[1743954979118,6.97595,1760.6,1760.1,3.97703]
[1743954979119,6.97614,1760.5,1760.4,5.418]
[1743954981908,3.0,1760.5,1760.4,5.418]
[1743954982433,6.97614,1760.5,1760.4,5.418]
[1743954983529,3.0,1760.5,1760.4,5.418]
[1743954986443,3.0,1760.5,1760.4,6.2066]
[1743954990564,3.0,1760.5,1760.3,3.97649]
[1743954990565,3.0,1760.5,1759.9,40.89236326]
[1743954990721,3.0,1760.2,1759.9,41.70426326]
[1743954990921,6.97693,1760.2,1760.0,5.417]
[1743954991645,3.0,1760.2,1760.0,5.417]
[1743954992546,6.97689,1760.2,1760.0,5.417]
[1743954992744,3.97704,1760.1,1760.0,5.417]
[1743954993055,6.97704,1760.1,1760.0,5.417]
[1743954993252,6.97704,1760.1,1759.9,40.89236326]
[1743954993253,0.7702,1760.0,1759.9,40.89236326]
[1743954993560,7.74747,1760.0,1759.9,40.89236326]
[1743954994759,8.29747,1760.0,1759.9,0.00636326]
[1743954994954,9.92188858,1760.0,1759.9,0.00636326]
[1743954995959,10.3555138,1760.0,1759.9,0.00636326]
[1743954996258,20.45518961,1760.0,1759.9,0.00636326]
[1743954996644,16.4855138,1760.0,1759.9,0.00636326]
[1743954997068,20.45518961,1760.0,1759.9,0.00636326]
[1743954997664,19.90518961,1760.0,1759.9,0.00636326]
[1743954997847,13.54089522,1760.0,1759.9,0.00636326]
[1743954998047,9.13,1760.0,1759.9,0.00636326]
[1743954998566,9.13,1760.0,1759.9,0.81766326]
[1743954999073,3.97686,1760.2,1759.9,0.81766326]
[1743954999235,3.0,1760.1,1760.0,5.418]
[1743955000049,6.97704,1760.1,1760.0,5.418]
[1743955000253,8.07169358,1760.1,1760.0,5.418]
[1743955000986,8.86009358,1760.1,1760.0,5.418]
[1743955002949,3.97727,1760.0,1759.9,0.00636326]
[1743955003266,10.94694581,1760.0,1759.9,0.00636326]
[1743955003435,12.68264975,1760.0,1759.9,0.00636326]
[1743955003636,13.47104975,1760.0,1759.9,0.00636326]
[1743955004571,9.50137394,1760.0,1759.9,0.00636326]
[1743955007882,8.71297394,1760.0,1759.9,0.00636326]
[1743955009283,13.99244975,1760.0,1759.9,0.00636326]
[1743955012487,20.12244975,1760.0,1759.9,0.00636326]
[1743955015654,24.09212556,1760.0,1759.9,3.26e-06]
[1743955015857,3.97908,1759.2,1759.1,5.467]
[1743955016094,7.774873,1759.2,1759.1,5.467]
[1743955017363,6.97908,1759.2,1759.1,5.467]
[1743955018281,6.97908,1759.2,1759.1,0.05]
[1743955018487,3.97908,1759.2,1759.1,5.468]
[1743955019602,3.97908,1759.2,1759.1,0.05]
[1743955019603,6.97908,1759.2,1759.1,0.05]
[1743955020901,6.13,1759.4,1759.1,5.33066]
[1743955021089,7.95644,1759.6,1759.3,0.7548]
[1743955021090,0.42323343,1759.5,1759.3,0.7548]
[1743955021286,0.42323343,1759.5,1759.4,5.418]
[1743955021495,3.97818,1759.6,1759.4,5.418]
[1743955021797,6.13,1759.8,1759.5,0.7548]
[1743955021998,10.10786,1759.8,1759.5,0.7548]
[1743955022205,3.0,1759.6,1759.5,0.7548]
[1743955022502,6.97817,1759.6,1759.5,0.7548]
[1743955022800,3.97817,1759.6,1759.5,0.7548]
[1743955023098,6.97817,1759.6,1759.5,0.7548]
[1743955023475,3.0,1759.6,1759.5,0.7548]
[1743955023898,4.2736504,1759.9,1759.5,5.3332]
[1743955024203,3.97733,1760.0,1759.6,0.7548]
[1743955024414,3.0,1759.9,1759.6,0.7548]
[1743955024760,6.9775,1759.9,1759.6,0.7548]
[1743955025701,3.0,1759.9,1759.6,0.7548]
[1743955025871,3.0,1759.9,1759.6,4.73296]
[1743955026601,3.0,1759.9,1759.7,0.7548]
[1743955026804,3.0,1759.9,1759.8,5.417]
[1743955030702,6.97749,1759.9,1759.8,5.417]
[1743955032680,3.0,1759.9,1759.8,5.417]
[1743955032885,3.41748799,1760.0,1759.8,5.417]
[1743955033385,7.39475799,1760.0,1759.8,5.417]
[1743955033807,6.13,1760.1,1759.9,4.75139]
[1743955033998,45.39738116,1761.2,1760.1,3.97684]
[1743955033999,0.43666031,1760.3,1760.1,3.97684]
[1743955034307,3.9762,1760.5,1760.2,6.1909]
[1743955034514,3.39762,1760.4,1760.2,6.1909]
[1743955035005,7.374,1760.4,1760.2,6.1909]
[1743955035175,4.374,1760.4,1760.2,6.1909]
[1743955036104,3.9762,1760.5,1760.2,6.1909]
[1743955036310,10.10595,1760.6,1760.2,10.16772]
[1743955036604,3.0,1760.5,1760.2,10.16772]
[1743955037111,3.97646,1760.4,1760.2,6.1909]
[1743955037313,6.97624,1760.5,1760.2,6.1909]
[1743955041924,3.97672,1760.3,1760.0,0.8073]
[1743955042091,3.97672,1760.3,1760.1,5.415]
[1743955042887,6.97643,1760.4,1760.1,5.415]
[1743955044413,10.95296,1760.4,1760.1,5.415]
[1743955045920,6.97643,1760.4,1760.1,5.415]
[1743955048815,3.0,1760.4,1760.1,9.39203]
[1743955048995,3.0,1760.4,1760.2,0.7578]
[1743955049181,3.0,1760.4,1760.2,4.73459]
[1743955049380,3.0,1760.5,1760.2,0.7578]
[1743955049701,6.55613829,1760.6,1760.4,0.7578]
[1743955049907,4.27180363,1760.7,1760.5,5.414]
[1743955049908,0.29608363,1760.7,1760.5,5.414]
[1743955050513,3.0,1760.6,1760.5,5.414]
[1743955051480,6.97591,1760.6,1760.5,5.414]
[1743955055291,3.97624,1760.5,1760.2,0.7523]
[1743955055502,3.97624,1760.5,1760.3,5.414]
[1743955058129,7.95253,1760.5,1760.3,5.414]
[1743955058333,3.97636,1760.4,1760.3,5.414]
[1743955058638,11.74129581,1760.4,1760.3,5.413]
[1743955060536,7.77162,1760.4,1760.3,5.413]
[1743955065759,8.55782,1760.4,1760.3,5.413]
[1743955066567,7.77162,1760.4,1760.3,5.413]
[1743955067247,6.97673,1760.3,1760.2,5.413]
[1743955067622,7.753929,1760.3,1760.2,5.413]
[1743955069301,3.0,1760.1,1759.7,49.86593]
[1743955069455,6.97704,1760.1,1759.8,6.2233]
[1743955069645,3.0,1760.1,1759.8,10.20091]
[1743955069844,3.0,1760.1,1759.8,14.17848]
[1743955070279,3.0,1760.1,1759.9,3.97748]
[1743955072878,3.42108983,1760.1,1759.9,3.97748]
[1743955073289,3.42108983,1760.1,1760.0,5.413]
[1743955073978,3.0,1760.1,1760.0,5.413]
[1743955074184,8.557259,1760.3,1760.0,5.413]
[1743955074484,0.8557259,1760.2,1760.0,5.413]
[1743955075147,12.534009,1760.3,1760.0,5.413]
[1743955075148,3.0,1760.3,1760.1,4.77352]
[1743955076200,7.41174746,1760.3,1760.1,0.7966]
[1743955076790,12.17119746,1760.3,1760.0,5.413]
[1743955077183,8.19444746,1760.3,1760.0,5.413]
[1743955077389,9.80849779,1760.3,1760.0,5.413]
[1743955077999,3.97688,1760.2,1760.0,5.413]
[1743955078303,13.78525779,1760.3,1760.0,5.413]
[1743955080607,9.80849779,1760.3,1760.0,5.413]
[1743955082216,13.78528779,1760.3,1760.0,5.413]
[1743955082911,3.97683,1760.2,1760.0,5.413]
[1743955083709,9.02579779,1760.3,1760.0,9.39027]
[1743955083918,11.38853746,1760.3,1760.0,5.413]
[1743955084099,7.41174746,1760.3,1760.0,5.413]
[1743955084314,11.38851746,1760.3,1760.0,5.413]
[1743955084489,10.95337,1760.3,1760.0,5.413]
[1743955085109,11.38430017,1760.3,1760.0,5.413]
[1743955085310,6.97688,1760.2,1760.1,5.412]
[1743955086711,6.97707,1760.1,1760.0,5.412]
[1743955087292,3.0,1760.1,1760.0,5.412]
[1743955089210,6.97704,1760.1,1760.0,5.412]
[1743955092879,6.97704,1760.1,1759.8,0.7901]
[1743955093100,6.97704,1760.1,1759.9,5.412]
[1743955093316,10.95427,1760.1,1759.9,5.412]
[1743955095093,3.97727,1760.0,1759.9,5.412]
[1743955098145,3.0,1760.1,1759.9,5.412]
[1743955098337,0.71991628,1760.3,1760.0,0.8237]
[1743955098338,3.0,1760.2,1760.0,0.8237]
[1743955098702,6.97683,1760.2,1760.0,0.8237]
[1743955098903,3.97705,1760.1,1759.9,5.412]
[1743955099217,3.97727,1760.0,1759.9,5.412]
[1743955101548,3.97749,1759.9,1759.7,5.0]
[1743955101871,3.97749,1759.9,1759.8,5.411]
[1743955102139,3.9784,1759.6,1759.4,41.7157]
[1743955102357,6.9784,1759.5,1759.4,46.303]
[1743955103451,3.0,1759.5,1759.4,46.303]
[1743955104058,6.9784,1759.5,1759.4,46.303]
[1743955105325,7.7678,1759.5,1759.4,40.892]
[1743955105524,6.97862,1759.4,1759.3,5.412]
[1743955107459,10.94829581,1759.4,1759.3,5.412]
[1743955109554,6.97862,1759.4,1759.3,5.412]
[1743955111561,3.97897,1759.3,1759.1,0.05]
[1743955111856,7.95804,1759.3,1759.2,5.412]
[1743955112060,9.053844,1759.3,1759.2,5.412]
[1743955112255,6.97908,1759.2,1759.1,0.05]
[1743955112435,6.97908,1759.2,1759.1,5.462]
[1743955121400,11.49875581,1759.2,1759.1,0.05]
[1743955122586,12.30535581,1759.2,1759.1,0.05]
[1743955122880,14.04336879,1759.2,1759.1,0.05]
[1743955125384,24.1430446,1759.2,1759.1,0.05]
[1743955125681,20.17336879,1759.2,1759.1,0.05]
[1743955127586,20.46946966,1759.2,1759.1,0.05]
[1743955128566,24.43914547,1759.2,1759.1,0.05]
[1743955128772,6.98066,1758.5,1758.4,6.1938]
[1743955129758,10.95033581,1758.5,1758.4,5.413]
[1743955130876,11.38703279,1758.5,1758.4,5.413]
[1743955131482,11.38703279,1758.5,1758.3,0.7808]
[1743955131658,12.52573607,1758.5,1758.4,5.413]
[1743955132472,7.41735698,1758.5,1758.4,5.413]
[1743955135187,3.0,1758.5,1758.4,6.234]
[1743955135976,6.98066,1758.5,1758.4,6.234]
[1743955136174,3.0,1758.5,1758.4,6.234]
[1743955138205,6.98066,1758.5,1758.4,6.234]
[1743955139103,3.50341386,1758.5,1758.4,6.234]
[1743955139496,7.48407386,1758.5,1758.4,6.234]
[1743955139674,7.48407386,1758.5,1758.4,5.413]
[1743955139881,8.3305368,1758.5,1758.4,5.413]
[1743955140994,7.89712294,1758.5,1758.4,5.413]
[1743955143416,6.98091,1758.4,1758.3,5.413]
[1743955143729,6.98091,1758.4,1758.1,0.05]
[1743955143880,10.95058581,1758.4,1758.3,5.413]
[1743955144235,3.98125,1758.3,1758.1,0.05]
[1743955144509,3.98111,1758.3,1758.1,0.05]
[1743955144713,12.33141581,1758.2,1758.1,0.05]
[1743955146518,11.50101581,1758.2,1758.1,0.05]
[1743955146714,13.04922839,1758.2,1758.1,0.05]
[1743955148119,4.54821258,1758.2,1758.1,0.05]
[1743955148411,6.98134,1758.2,1758.1,0.05]
[1743955148617,3.0,1758.2,1758.1,5.463]
[1743955148824,7.95056581,1758.4,1758.1,5.463]
[1743955149217,7.95056581,1758.4,1758.2,0.7547]
[1743955149218,3.0,1758.3,1758.2,0.7547]
[1743955154465,8.32961877,1758.5,1758.2,0.7547]
[1743955154634,3.50247583,1758.5,1758.2,0.7547]
[1743955154936,0.50247583,1758.5,1758.3,3.98102]
[1743955155252,0.07,1758.5,1758.4,4.83095823]
[1743955156750,0.07,1758.5,1758.4,4.77409]
[1743955160446,0.07,1758.5,1758.4,4.83094768]
[1743955160854,0.07,1758.5,1758.4,4.83094767]
[1743955161033,0.07,1758.5,1758.4,8.80062348]
[1743955161239,0.07,1758.5,1758.4,8.74376581]
[1743955163043,0.07,1758.5,1758.4,10.18609]
[1743955163846,0.07,1758.5,1758.4,10.24294769]
[1743955166624,0.07,1758.5,1758.4,51.16994769]
[1743955166824,0.07,1758.5,1758.4,51.11309]
[1743955170862,0.07,1758.5,1758.4,51.11209]
[1743955175132,0.07,1758.5,1758.4,45.70109]
[1743955175335,0.07,1758.5,1758.4,51.11109]
[1743955177265,1e-05,1758.5,1758.4,58.49980998]
[1743955177559,1e-05,1758.5,1758.4,59.04980998]
[1743955177727,1e-05,1758.5,1758.4,59.14980998]
[1743955180620,1e-05,1758.5,1758.4,55.18013417]
[1743955180823,1e-05,1758.5,1758.4,59.14980998]
[1743955181675,0.8189,1759.7,1759.3,3.97885]
[1743955181980,3.8189,1760.1,1759.8,7.95514]
[1743955182164,0.8189,1760.1,1759.9,5.409]
[1743955183459,5.575573,1760.1,1759.9,5.409]
[1743955183638,1.598473,1760.1,1759.9,5.409]
[1743955184529,0.8189,1760.1,1759.9,5.409]
[1743955185280,4.79599,1760.1,1759.9,5.409]
[1743955185577,0.8189,1760.1,1759.9,5.409]
[1743955186052,4.79601,1760.1,1759.9,5.409]
[1743955186253,0.8189,1760.0,1759.9,5.409]
[1743955186649,4.79617,1760.0,1759.9,5.409]
[1743955186962,0.8189,1760.0,1759.9,5.409]
[1743955187330,7.7697,1759.9,1759.8,5.408]
[1743955188053,11.73937581,1759.9,1759.8,5.408]
[1743955189757,3.9782,1759.6,1759.5,5.407]
[1743955189956,6.9782,1759.6,1759.5,5.407]
[1743955190346,3.8179,1759.6,1759.5,5.407]
[1743955192149,8.22064302,1759.6,1759.5,5.407]
[1743955192395,8.22064302,1759.6,1759.3,40.916]
[1743955192559,8.22064302,1759.6,1759.4,5.407]
[1743955193563,3.8179,1759.5,1759.4,5.407]
[1743955193775,7.79643,1759.5,1759.4,5.407]
[1743955193957,3.97862,1759.4,1759.3,40.916]
[1743955194158,0.8179,1759.4,1759.3,46.323]
[1743955197565,0.8179,1759.4,1759.3,50.30185]
[1743955197756,0.8179,1759.4,1759.3,46.323]
[1743955200100,0.8179,1759.4,1758.8,3.96967581]
[1743955200101,0.7845,1759.0,1758.6,0.7522]
[1743955200607,0.7845,1759.0,1758.1,0.05]
[1743955200608,0.7845,1759.0,1758.3,5.407]
[1743955200812,3.96967581,1758.7,1758.3,5.407]
[1743955200968,3.0,1758.6,1758.1,0.05]
[1743955201290,3.0,1758.6,1758.2,3.98131]
[1743955201451,3.0,1758.6,1758.3,5.407]
[1743955201657,3.69696758,1758.6,1758.3,5.407]
[1743955201874,0.7845,1758.5,1758.3,5.407]
[1743955202083,3.0,1758.4,1758.3,5.407]
[1743955202886,3.0,1758.4,1758.1,0.05]
[1743955203066,3.41885337,1758.4,1758.2,5.408]
[1743955205176,6.96967581,1758.3,1758.2,5.408]
[1743955205479,0.7845,1758.2,1758.1,5.458]
[1743955205684,0.7845,1758.2,1758.1,0.05]
[1743955205886,0.7845,1758.2,1758.1,4.03157]
[1743955206291,6.96967581,1758.3,1758.1,4.03157]
[1743955206765,6.96967581,1758.3,1758.1,4.03143]
[1743955206766,3.0,1758.3,1758.1,4.03143]
[1743955207976,3.0,1758.3,1758.1,0.05]
[1743955208274,3.50206563,1758.3,1758.1,0.05]
[1743955209669,3.50206563,1758.3,1758.1,4.03156]
[1743955209910,3.50206563,1758.3,1758.1,0.05]
[1743955210277,3.8129,1758.2,1758.1,0.05]
[1743955210480,1.64136414,1758.2,1758.1,0.05]
[1743955211419,3.0,1758.2,1758.1,4.03157]
[1743955211569,0.8129,1758.7,1758.5,3.98063]
[1743955211770,0.8129,1758.9,1758.5,3.98056]
[1743955212022,3.8129,1758.9,1758.5,3.98056]
[1743955212194,0.8129,1758.9,1758.6,3.98032]
[1743955212615,3.96967581,1758.8,1758.4,13.37061]
[1743955212913,3.39696758,1758.7,1758.5,3.98056]
[1743955213289,3.39696758,1758.7,1758.5,7.96106]
[1743955213484,3.39696758,1758.7,1758.5,3.9805]
[1743955213909,3.39696758,1758.7,1758.5,7.96105]
[1743955214083,3.39696758,1758.7,1758.5,3.9805]
[1743955214488,3.39696758,1758.7,1758.4,9.38981]
[1743955214682,3.39696758,1758.7,1758.4,13.37054]
[1743955214887,3.39696758,1758.7,1758.4,9.38973]
[1743955215109,3.39696758,1758.7,1758.5,3.98066]
[1743955216736,3.39696758,1758.7,1758.4,9.38973]
[1743955217034,4.30937257,1758.6,1758.4,5.409]
[1743955217322,3.0,1758.5,1758.4,5.409]
[1743955217531,3.0,1758.5,1758.3,5.409]
[1743955217730,3.0,1758.5,1758.3,9.39011]
[1743955218029,3.0,1758.5,1758.4,3.98089]
[1743955218685,3.0,1758.5,1758.3,9.39011]
[1743955220331,3.0,1758.5,1758.3,13.37106]
[1743955220489,3.0,1758.5,1758.3,9.39003]
[1743955221738,3.0,1758.5,1758.4,3.98089]
[1743955222061,0.7563,1758.9,1758.7,3.98019]
[1743955222198,0.7563,1758.9,1758.8,3.97998]
[1743955222387,0.7563,1758.9,1758.7,3.98019]
[1743955222793,3.7563,1758.9,1758.7,3.98019]
[1743955223031,4.52889758,1758.9,1758.6,3.98042]
[1743955223803,4.52889758,1758.9,1758.5,3.98065]
[1743955224011,8.50874758,1758.9,1758.5,3.98065]
[1743955224221,3.96967581,1758.8,1758.4,3.9808]
[1743955224427,0.7563,1758.6,1758.5,5.409]
[1743955224723,1.13193,1758.6,1758.5,5.409]
[1743955227339,8.10160581,1758.6,1758.5,5.409]
[1743955227697,3.0,1758.5,1758.2,3.98132]
[1743955227897,3.0,1758.5,1758.3,5.409]
[1743955228911,3.0,1758.5,1758.3,9.39011]
[1743955229444,3.81016058,1758.5,1758.3,9.39011]
[1743955229668,3.81016058,1758.5,1758.2,13.37142]
[1743955230732,3.81016058,1758.5,1758.2,9.39019]
[1743955231926,3.81016058,1758.5,1758.2,13.37138]
[1743955232877,3.81016058,1758.5,1758.1,0.8744]
[1743955232878,3.81016058,1758.5,1758.1,4.85595]
[1743955233045,3.81016058,1758.5,1758.2,5.409]
[1743955233046,0.8172,1758.3,1758.2,5.409]
[1743955235288,0.38101606,1758.4,1758.2,9.39022]
[1743955235779,0.38101606,1758.4,1758.2,13.37148]
[1743955235987,3.42044717,1758.5,1758.4,3.98089]
[1743955236152,0.42044717,1758.5,1758.4,3.98089]
[1743955236346,0.7937,1758.7,1758.4,3.98089]
[1743955236647,1.17307,1758.7,1758.4,3.98089]
[1743955236875,1.17307,1758.7,1758.5,3.98058]
[1743955237170,0.7937,1758.9,1758.5,3.98066]
[1743955237372,0.7937,1758.9,1758.6,9.38939]
[1743955237755,3.7937,1758.9,1758.6,9.38939]
[1743955238385,0.7937,1758.9,1758.6,5.409]
[1743955238579,3.55,1758.8,1758.6,5.409]
[1743955238744,1.1487,1758.7,1758.6,5.409]
[1743955242187,3.0,1758.9,1758.7,3.98002]
[1743955242486,4.52593294,1759.0,1758.6,10.18282]
[1743955242670,8.49560875,1759.0,1758.8,3.97989]
[1743955242852,8.49560875,1759.0,1758.6,13.36984]
[1743955243180,12.47515875,1759.0,1758.6,9.38942]
[1743955243358,1.24751587,1758.9,1758.6,9.38942]
[1743955243951,1.24751587,1758.9,1758.6,5.409]
[1743955244149,5.22739587,1758.9,1758.6,5.409]
[1743955245203,1.24751587,1758.9,1758.7,3.98008]
[1743955245699,1.24751587,1758.9,1758.6,5.409]
[1743955246561,1.24751587,1758.9,1758.6,9.38943]
[1743955247279,1.24751587,1758.9,1758.6,13.36974]
[1743955247607,1.24751587,1758.9,1758.6,9.38931]
[1743955247981,1.24751587,1758.9,1758.6,5.409]
[1743955248181,5.22728587,1758.9,1758.6,5.409]
[1743955248382,0.52272859,1758.8,1758.6,5.409]
[1743955248677,1.24751587,1758.9,1758.6,9.38935]
[1743955249077,1.24751587,1758.9,1758.6,5.409]
[1743955249402,1.24751587,1758.9,1758.7,3.98019]
[1743955249804,1.24751587,1758.9,1758.8,3.97998]
[1743955249999,0.29600698,1759.0,1758.8,3.97998]
[1743955250202,0.29600698,1759.0,1758.8,3.9799]
[1743955250388,0.7937,1759.2,1758.9,3.97976]
[1743955250704,0.84587736,1759.4,1759.1,3.9793]
[1743955250915,0.55,1759.3,1759.1,3.9793]
[1743955251279,1.01765774,1759.3,1759.1,3.9793]
[1743955251488,1.01765774,1759.3,1759.0,3.97943]
[1743955251690,1.01765774,1759.3,1758.9,3.97969]
[1743955251887,4.99650774,1759.3,1758.9,3.97969]
[1743955252295,3.0,1759.2,1758.9,3.97969]
[1743955252489,1.01765774,1759.3,1759.0,3.97941]
[1743955252981,1.01765774,1759.3,1758.9,3.97974]
[1743955253179,5.42239093,1759.3,1758.9,3.97961]
[1743955253380,3.54223909,1759.2,1758.9,3.97961]
[1743955253602,7.52138909,1759.2,1759.0,5.408]
[1743955254121,3.54223909,1759.2,1759.0,5.408]
[1743955259008,3.54223909,1759.2,1759.0,5.398]
[1743955259309,7.52137909,1759.2,1759.0,5.398]
[1743955259512,8.48793791,1759.1,1759.0,5.398]
[1743955260093,12.45761372,1759.1,1758.6,4.80203]
[1743955260289,0.7565,1758.8,1758.5,3.98065]
[1743955260489,3.0,1758.7,1758.6,5.407]
[1743955260843,10.96059,1758.7,1758.3,4.80259]
[1743955261003,10.96059,1758.7,1758.4,5.407]
[1743955261210,1.096059,1758.6,1758.4,5.407]
[1743955262507,3.0,1758.4,1758.1,0.8716]
[1743955262702,10.96206,1758.4,1758.2,0.49468716]
[1743955262901,5.833816,1758.3,1758.2,0.49468716]
[1743955263120,8.833816,1758.3,1758.2,0.49468716]
[1743955263620,9.25403934,1758.3,1758.1,0.05]
[1743955263825,3.98134,1758.2,1758.1,0.05]
[1743955264023,6.98134,1758.2,1758.1,0.05]
[1743955264228,8.70184552,1758.2,1758.1,0.05]
[1743955264396,9.25184552,1758.2,1758.1,0.05]
[1743955266401,3.0,1758.2,1758.1,0.05]
[1743955267268,0.29607554,1758.3,1758.2,3.98134]
[1743955267538,0.55,1758.5,1758.2,3.98134]
[1743955267901,7.53066,1758.5,1758.1,4.03145]
[1743955268102,0.753066,1758.4,1758.1,4.0314]
[1743955269638,7.53134,1758.2,1758.1,0.05]
[1743955269851,3.0,1758.2,1758.1,0.05]
[1743955270192,3.0,1758.2,1758.1,4.03157]
[1743955270837,0.753066,1758.4,1758.2,3.98112]
[1743955271033,1.94201016,1758.6,1758.2,13.3703]
[1743955271206,1.39201016,1758.6,1758.3,4.80601]
[1743955271435,3.29595116,1758.6,1758.3,4.80601]
[1743955271736,3.29595116,1758.6,1758.3,8.78701]
[1743955272035,5.20422002,1758.7,1758.3,4.8059]
[1743955272421,3.0,1758.6,1758.3,4.8059]
[1743955272623,5.20422002,1758.7,1758.3,4.8059]
[1743955272830,3.520422,1758.6,1758.3,4.8059]
[1743955274339,3.0,1758.6,1758.3,4.8059]
[1743955274540,3.0,1758.6,1758.3,0.8249]
[1743955274839,10.65998,1758.8,1758.4,4.03760863]
[1743955274840,3.0,1758.8,1758.4,4.03760863]
[1743955275037,3.0,1758.8,1758.5,3.98056]
[1743955275533,0.29597464,1758.9,1758.6,10.15119]
[1743955275846,3.7235251,1758.9,1758.6,6.1709]
[1743955276138,7.95000581,1758.7,1758.3,10.152]
[1743955276502,3.98048,1758.6,1758.3,6.1709]
[1743955276709,3.0,1758.5,1758.3,6.1709]
[1743955277235,3.0,1758.5,1758.3,10.15199]
[1743955277638,3.0,1758.5,1758.3,6.1709]
[1743955278936,3.0,1758.4,1758.3,5.408]
[1743955279234,3.0,1758.4,1758.2,5.408]
[1743955280136,3.0,1758.2,1758.1,0.05]
[1743955280300,6.98134,1758.2,1758.1,0.05]
[1743955280505,9.454695,1758.2,1758.1,0.05]
[1743955282439,3.0,1758.3,1758.1,0.05]
[1743955283451,0.55,1758.4,1758.1,4.03148]
[1743955283750,0.55,1758.4,1758.2,3.98125]
[1743955284312,6.98025,1758.7,1758.3,4.74401]
[1743955284621,0.698025,1758.6,1758.3,10.15201]
[1743955285150,5.11289423,1758.6,1758.3,6.1709]
[1743955286106,3.9808,1758.5,1758.3,6.1709]
[1743955286618,5.11289423,1758.6,1758.3,6.1709]